bitfinex/quotes_SOLUSD_20241223
["timestamp","ask_amount","ask_price","bid_price","bid_amount"]
[1734976832301,3.2625,184.88,184.79,14.35252323]
[1734976832485,16.22363136,184.91,184.77,14.35252323]
[1734976832907,1.3521,184.89,184.75,42.63352323]
[1734976833113,0.12549,184.88,184.75,28.281]
[1734976833419,0.12549,184.88,184.75,8.281]
[1734976833598,0.12549,184.88,184.75,22.63352323]
[1734976834205,0.12549,184.88,184.76,14.35252323]
[1734976834399,0.12549,184.88,184.77,14.35252323]
[1734976835502,1.3521,184.89,184.77,14.35252323]
[1734976835702,1.3519,184.92,184.79,14.35252323]
[1734976836304,0.12549,184.91,184.8,14.35252323]
[1734976836893,1.3519,184.92,184.8,14.35252323]
[1734976837219,0.12549,184.91,184.8,14.35252323]
[1734976838326,1.3519,184.92,184.81,14.35252323]
[1734976838523,1.3516,184.96,184.85,14.35252323]
[1734976838726,11.36819962,184.98,184.86,14.35252323]
[1734976839114,0.12549,184.97,184.88,14.35252323]
[1734976839308,0.12549,184.97,184.82,7.8869]
[1734976839309,11.36819962,184.98,184.89,14.35252323]
[1734976839604,3.2625,184.98,184.89,14.35252323]
[1734976839803,1.3514,184.99,184.9,14.35252323]
[1734976840324,0.12549,184.98,184.9,14.35252323]
[1734976840514,1.3514,184.99,184.9,14.35252323]
[1734976840722,1.3512,185.02,184.9,14.35252323]
[1734976840914,1.3512,185.02,184.89,14.35252323]
[1734976841122,1.3512,185.02,184.9,14.35252323]
[1734976841514,0.12549,185.01,184.9,14.35252323]
[1734976842031,0.12549,185.01,184.89,14.35252323]
[1734976842417,0.12549,185.01,184.9,14.35252323]
[1734976843409,0.12549,185.01,184.92,14.35252323]
[1734976843725,0.12549,185.01,184.89,14.35252323]
[1734976844329,0.12549,185.02,184.88,14.35252323]
[1734976844509,0.12549,184.99,184.87,14.35252323]
[1734976844835,0.12549,184.99,184.88,14.35252323]
[1734976845041,0.12549,184.99,184.89,14.35252323]
[1734976845636,0.12549,184.99,184.91,14.35252323]
[1734976845806,3.2625,185.03,184.92,14.35252323]
[1734976846135,3.2625,185.03,184.9,14.35252323]
[1734976846342,0.12549,185.01,184.87,34.35252323]
[1734976846504,0.12549,185.01,184.87,14.35252323]
[1734976847144,0.12549,185.01,184.85,1.6043]
[1734976847145,0.12549,185.01,184.88,14.35252323]
[1734976847327,0.12549,185.01,184.89,14.35252323]
[1734976847631,0.12549,185.01,184.9,14.35252323]
[1734976848219,0.12549,185.01,184.91,14.35252323]
[1734976848441,0.12549,185.01,184.92,14.35252323]
[1734976850413,1.3512,185.02,184.93,14.35252323]
[1734976850613,3.2625,185.03,184.93,14.35252323]
[1734976851110,3.2625,185.03,184.95,14.35252323]
[1734976851309,21.3509,185.05,184.95,14.35252323]
[1734976852645,21.3509,185.05,184.96,14.35252323]
[1734976852826,1.3509,185.05,184.97,14.35252323]
[1734976853131,0.12549,185.04,184.93,2.35634455]
[1734976853347,0.12549,185.04,184.98,14.35252323]
[1734976853510,3.2625,185.07,184.98,14.35252323]
[1734976854943,0.12549,185.06,184.98,14.35252323]
[1734976855115,23.2625,185.12,184.99,14.35252323]
[1734976855315,24.6129,185.12,185.01,14.35252323]
[1734976855735,0.12549,185.11,185.01,14.35252323]
[1734976855915,24.6129,185.12,185.01,14.35252323]
[1734976856239,4.6129,185.12,185.02,14.35252323]
[1734976857017,4.6129,185.12,184.98,14.35252323]
[1734976857543,0.12549,185.11,184.98,14.35252323]
[1734976858318,0.12549,185.11,184.99,14.35252323]
[1734976858537,20.12549,185.09,184.99,14.35252323]
[1734976859247,0.12549,185.09,184.99,14.35252323]
[1734976859444,0.12549,185.09,185.0,14.35252323]
[1734976859631,0.12549,185.09,184.99,14.35252323]
[1734976860546,0.12549,185.09,184.98,14.35252323]
[1734976861053,0.12549,185.09,184.99,14.35252323]
[1734976861344,0.12549,185.09,184.98,14.35252323]
[1734976861743,0.12549,185.09,184.99,14.35252323]
[1734976863959,1.3507,185.08,184.99,14.35252323]
[1734976864124,0.12549,185.07,184.97,14.35252323]
[1734976865434,0.12549,185.07,184.98,14.35252323]
[1734976866852,0.12549,185.11,184.94,14.35252323]
[1734976867155,20.12549,185.09,184.93,15.89812323]
[1734976867354,20.12549,185.09,184.94,14.35252323]
[1734976867958,20.12549,185.09,184.95,14.35252323]
[1734976868161,0.12549,185.07,184.95,14.35252323]
[1734976868655,20.12549,185.07,184.94,14.35252323]
[1734976869256,20.12549,185.07,184.93,14.35252323]
[1734976869470,0.12549,185.05,184.93,14.35252323]
[1734976869677,3.2625,185.06,184.99,14.35252323]
[1734976869830,1.3507,185.08,184.95,20.0]
[1734976870033,0.12549,185.07,184.97,14.35252323]
[1734976870545,45.0359353,185.2,184.97,14.35252323]
[1734976870546,3.2625,185.19,185.03,14.35252323]
[1734976870753,3.2625,185.19,185.07,14.35252323]
[1734976870959,4.6124,185.19,185.08,14.35252323]
[1734976871379,4.6124,185.19,185.09,14.35252323]
[1734976871537,3.2625,185.19,185.11,14.35252323]
[1734976871732,0.6834123,185.2,185.12,14.35252323]
[1734976872062,1.3499,185.19,185.07,15.95332323]
[1734976872245,1.3499,185.19,185.04,14.35252323]
[1734976872455,0.12549,185.17,185.02,15.95332323]
[1734976873048,0.12549,185.17,185.03,14.35252323]
[1734976873256,0.12549,185.15,185.03,14.35252323]
[1734976873469,0.12549,185.12,185.03,14.35252323]
[1734976873635,20.0,185.16,185.05,14.35252323]
[1734976873961,20.0,185.16,185.02,1.6008]
[1734976873962,20.0,185.16,185.06,14.35252323]
[1734976874271,23.776884,185.11,185.05,14.35252323]
[1734976875344,0.6834123,185.2,185.1,14.35252323]
[1734976875545,0.6834123,185.2,185.12,14.35252323]
[1734976875745,0.6834123,185.2,185.13,14.35252323]
[1734976877042,0.6834123,185.2,185.14,14.35252323]
[1734976877663,0.6834123,185.2,185.17,14.35252323]
[1734976877850,0.6834123,185.2,185.18,14.35252323]
[1734976878041,0.6834123,185.2,185.12,0.12549]
[1734976878042,0.6834123,185.2,185.17,14.35252323]
[1734976878759,0.6834123,185.2,185.18,14.35252323]
[1734976879572,0.6834123,185.2,185.19,14.35252323]
[1734976881278,0.6834123,185.2,185.19,15.98592323]
[1734976881480,0.6834123,185.2,185.19,31.27354247]
[1734976881841,1.3487,185.36,185.21,0.12549]
[1734976882048,1.3487,185.36,185.26,14.35252323]
[1734976882558,3.9457,185.37,185.29,14.35252323]
[1734976882763,3.9457,185.37,185.28,14.35252323]
[1734976883481,0.6832,185.37,185.28,14.35252323]
[1734976883981,0.6832,185.37,185.25,20.0]
[1734976883982,0.6832,185.37,185.29,14.35252323]
[1734976884291,0.6834123,185.39,185.32,14.35252323]
[1734976885481,23.776884,185.38,185.32,14.35252323]
[1734976886841,23.776884,185.38,185.31,14.35252323]
[1734976887069,23.776884,185.38,185.29,14.35252323]
[1734976887446,23.776884,185.38,185.3,14.35252323]
[1734976888054,23.776884,185.38,185.32,14.35252323]
[1734976888458,23.776884,185.38,185.3,14.35252323]
[1734976888661,23.776884,185.38,185.31,14.35252323]
[1734976889165,23.776884,185.38,185.32,14.35252323]
[1734976890345,0.6834123,185.39,185.33,14.35252323]
[1734976890547,0.6834123,185.39,185.34,14.35252323]
[1734976890750,0.6834123,185.39,185.38,14.35252323]
[1734976893089,0.6834123,185.39,185.38,15.16137933]
[1734976893983,0.6834123,185.39,185.38,20.94801323]
[1734976894290,0.6834123,185.39,185.38,44.72489723]
[1734976895365,2.7137,185.56,185.42,20.0]
[1734976895570,2.7137,185.56,185.44,14.35252323]
[1734976896277,0.12549,185.55,185.45,14.35252323]
[1734976896692,23.902374,185.55,185.44,14.35252323]
[1734976897389,23.902374,185.55,185.45,14.35252323]
[1734976897689,23.776884,185.51,185.42,34.35252323]
[1734976898286,23.776884,185.51,185.43,14.35252323]
[1734976898486,0.12549,185.5,185.41,14.35252323]
[1734976898688,0.12549,185.5,185.4,14.35252323]
[1734976898906,0.12549,185.5,185.41,14.35252323]
[1734976899301,23.902374,185.43,185.34,14.35252323]
[1734976899500,23.902374,185.43,185.32,14.35252323]
[1734976899801,0.12549,185.39,185.3,28.01646811]
[1734976899993,23.902374,185.39,185.3,28.01646811]
[1734976900190,23.902374,185.39,185.29,14.35252323]
[1734976900500,23.776884,185.45,185.32,14.35252323]
[1734976900690,0.12549,185.41,185.32,14.35252323]
[1734976900999,23.776884,185.45,185.36,14.35252323]
[1734976901299,23.776884,185.45,185.38,14.35252323]
[1734976903478,1.3664,185.5,185.4,14.35252323]
[1734976903697,23.776884,185.47,185.4,14.35252323]
[1734976905987,21.3664,185.5,185.42,14.35252323]
[1734976906322,3.2625,185.53,185.44,14.35252323]
[1734976906812,1.3471,185.58,185.46,14.35252323]
[1734976907033,1.3472,185.56,185.44,20.75802323]
[1734976907205,0.12549,185.55,185.44,14.35252323]
[1734976907513,0.12549,185.55,185.42,14.35252323]
[1734976907725,0.12549,185.53,185.4,20.75802323]
[1734976908094,43.902374,185.51,185.4,20.75802323]
[1734976908409,43.902374,185.51,185.4,14.35252323]
[1734976909426,43.902374,185.51,185.41,14.35252323]
[1734976909629,43.776884,185.51,185.43,14.35252323]
[1734976910727,43.776884,185.51,185.44,14.35252323]
[1734976911025,43.776884,185.51,185.43,14.35252323]
[1734976911428,43.776884,185.51,185.44,14.35252323]
[1734976911786,23.776884,185.51,185.46,14.35252323]
[1734976911993,1.3473,185.56,185.47,14.35252323]
[1734976912222,0.12549,185.55,185.41,0.80868476]
[1734976912411,0.12549,185.55,185.42,14.35252323]
[1734976913015,0.12549,185.55,185.43,14.35252323]
[1734976913222,23.902374,185.55,185.45,14.35252323]
[1734976913531,0.12549,185.5,185.43,14.35252323]
[1734976913900,0.12549,185.5,185.41,14.35252323]
[1734976914094,25.143284,185.51,185.44,14.35252323]
[1734976914300,25.143284,185.51,185.43,14.35252323]
[1734976914526,23.776884,185.51,185.46,14.35252323]
[1734976914709,20.0,185.56,185.46,14.35252323]
[1734976914906,1.47279,185.55,185.43,14.35252323]
[1734976916031,0.12549,185.53,185.44,14.35252323]
[1734976916834,23.776884,185.5,185.44,14.35252323]
[1734976917005,23.776884,185.5,185.42,14.35252323]
[1734976917333,23.776884,185.5,185.44,14.35252323]
[1734976918721,2.6933,185.65,185.48,14.35252323]
[1734976919047,1.6659,185.64,185.48,14.35252323]
[1734976919555,4.6095,185.59,185.48,14.35252323]
[1734976920157,1.3468,185.62,185.51,14.35252323]
[1734976920520,1.3468,185.62,185.52,14.35252323]
[1734976920943,1.347,185.6,185.48,14.35252323]
[1734976921144,0.12549,185.56,185.46,14.35252323]
[1734976921431,23.902374,185.54,185.45,14.35252323]
[1734976921832,23.902374,185.54,185.46,14.35252323]
[1734976922474,23.776884,185.54,185.46,14.35252323]
[1734976922758,23.776884,185.54,185.45,14.35252323]
[1734976922959,23.776884,185.54,185.46,14.35252323]
[1734976923170,23.776884,185.54,185.45,14.35252323]
[1734976923530,23.776884,185.54,185.46,14.35252323]
[1734976923731,23.776884,185.54,185.47,14.35252323]
[1734976924425,2.0306123,185.57,185.48,14.35252323]
[1734976925169,0.6834123,185.57,185.51,14.35252323]
[1734976925651,0.6834123,185.57,185.52,14.35252323]
[1734976925950,0.6834123,185.57,185.51,14.35252323]
[1734976926423,0.6834123,185.57,185.48,2.45986757]
[1734976926424,23.776884,185.56,185.5,14.35252323]
[1734976926624,23.776884,185.56,185.51,14.35252323]
[1734976926944,23.776884,185.56,185.5,14.35252323]
[1734976928579,23.776884,185.56,185.52,14.35252323]
[1734976928870,0.6834123,185.57,185.51,14.35252323]
[1734976929351,0.6834123,185.57,185.5,14.35252323]
[1734976930165,0.6834123,185.57,185.51,14.35252323]
[1734976930539,23.776884,185.56,185.51,14.35252323]
[1734976931870,0.12549,185.55,185.47,14.35252323]
[1734976932045,0.12549,185.55,185.46,14.35252323]
[1734976932248,23.776884,185.52,185.45,14.35252323]
[1734976933567,23.776884,185.52,185.44,14.35252323]
[1734976933873,0.12549,185.51,185.42,14.35252323]
[1734976934055,23.902374,185.48,185.39,14.35252323]
[1734976934571,23.902374,185.48,185.41,14.35252323]
[1734976935769,23.902374,185.48,185.39,14.35252323]
[1734976938053,23.902374,185.48,185.41,14.35252323]
[1734976938390,23.902374,185.48,185.39,14.35252323]
[1734976938548,0.12549,185.44,185.38,14.35252323]
[1734976938872,0.12549,185.44,185.32,7.9962]
[1734976938873,25.268774,185.44,185.35,14.35252323]
[1734976940167,28.531274,185.44,185.33,14.35252323]
[1734976940365,0.12549,185.4,185.33,14.35252323]
[1734976940758,23.902374,185.4,185.33,14.35252323]
[1734976941674,23.902374,185.4,185.32,14.35252323]
[1734976941877,25.250774,185.4,185.31,14.35252323]
[1734976942077,25.250774,185.4,185.29,14.35252323]
[1734976942281,25.250774,185.4,185.27,14.35252323]
[1734976942282,23.902374,185.36,185.27,14.35252323]
[1734976942449,23.902374,185.36,185.26,14.35252323]
[1734976942649,23.902374,185.36,185.23,1.5026]
[1734976942650,23.902374,185.34,185.25,14.35252323]
[1734976942874,23.776884,185.3,185.23,14.35252323]
[1734976943269,0.12549,185.29,185.21,14.35252323]
[1734976943484,20.0,185.27,185.19,28.04669921]
[1734976943674,23.776884,185.26,185.19,28.04669921]
[1734976943994,0.12549,185.25,185.19,28.04669921]
[1734976944166,23.776884,185.26,185.2,14.35252323]
[1734976944362,23.776884,185.26,185.19,42.39922244]
[1734976944707,0.12549,185.25,185.19,28.04669921]
[1734976945206,23.776884,185.26,185.2,14.35252323]
[1734976945763,23.776884,185.26,185.19,42.39922244]
[1734976946773,23.776884,185.26,185.21,14.35252323]
[1734976947268,23.776884,185.26,185.2,14.35252323]
[1734976947718,20.0,185.32,185.22,14.35252323]
[1734976947876,23.776884,185.27,185.2,14.35252323]
[1734976948194,23.776884,185.27,185.19,28.04669921]
[1734976948492,23.776884,185.27,185.19,42.39922244]
[1734976949199,23.776884,185.27,185.19,28.04669921]
[1734976949500,23.776884,185.27,185.19,42.39922244]
[1734976950203,23.776884,185.27,185.19,28.04669921]
[1734976950383,20.0,185.32,185.22,14.35252323]
[1734976950875,0.12549,185.31,185.21,14.35252323]
[1734976951716,23.902374,185.31,185.21,14.35252323]
[1734976953927,23.902374,185.31,185.22,14.35252323]
[1734976954136,23.776884,185.31,185.24,14.35252323]
[1734976954436,4.6289,185.35,185.27,14.35252323]
[1734976954618,4.6289,185.35,185.22,6.3603]
[1734976954619,4.6289,185.35,185.25,14.35252323]
[1734976955009,4.6289,185.35,185.24,14.35252323]
[1734976955223,4.6289,185.35,185.26,14.35252323]
[1734976956138,20.0,185.34,185.26,14.35252323]
[1734976956424,23.776884,185.33,185.27,14.35252323]
[1734976956606,20.0,185.34,185.28,14.35252323]
[1734976956811,1.3664,185.35,185.28,14.35252323]
[1734976958126,23.776884,185.34,185.26,14.35252323]
[1734976958823,23.776884,185.34,185.27,14.35252323]
[1734976959325,23.776884,185.34,185.28,14.35252323]
[1734976960028,23.776884,185.34,185.29,14.35252323]
[1734976960820,24.6289,185.39,185.3,14.35252323]
[1734976961029,4.6289,185.39,185.3,14.35252323]
[1734976961933,4.6289,185.39,185.31,14.35252323]
[1734976962310,1.3664,185.39,185.31,14.35252323]
[1734976963207,21.3664,185.39,185.31,14.35252323]
[1734976963409,21.3664,185.39,185.29,14.35252323]
[1734976963608,23.776884,185.38,185.3,14.35252323]
[1734976966044,1.3664,185.39,185.33,14.35252323]
[1734976966213,23.776884,185.39,185.33,14.35252323]
[1734976966542,20.0,185.42,185.34,14.35252323]
[1734976966843,1.3664,185.43,185.36,14.35252323]
[1734976967049,1.3664,185.43,185.35,14.35252323]
[1734976968240,1.3664,185.43,185.36,14.35252323]
[1734976968400,4.6289,185.47,185.37,14.35252323]
[1734976969843,1.3664,185.47,185.39,14.35252323]
[1734976970711,4.6289,185.51,185.4,14.35252323]
[1734976971112,20.0,185.49,185.41,14.35252323]
[1734976971437,4.6289,185.51,185.41,14.35252323]
[1734976971844,1.3664,185.51,185.42,14.35252323]
[1734976972146,1.3664,185.51,185.43,14.35252323]
[1734976972743,1.3664,185.51,185.44,14.35252323]
[1734976973313,1.3664,185.51,185.43,14.35252323]
[1734976973845,1.3473,185.55,185.46,14.35252323]
[1734976974012,4.6289,185.56,185.47,14.35252323]
[1734976974424,1.3664,185.56,185.48,14.35252323]
[1734976974607,1.3664,185.56,185.49,14.35252323]
[1734976974918,0.6834123,185.57,185.49,14.35252323]
[1734976975245,0.6834123,185.57,185.5,14.35252323]
[1734976976108,0.6834123,185.57,185.49,14.35252323]
[1734976976817,20.6834123,185.57,185.49,14.35252323]
[1734976977216,0.6834123,185.57,185.5,14.35252323]
[1734976977922,0.6834123,185.57,185.52,14.35252323]
[1734976978412,0.6834123,185.57,185.51,14.35252323]
[1734976978609,0.6834123,185.57,185.48,6.3945]
[1734976978817,0.6834123,185.57,185.45,15.94662323]
[1734976979047,20.0,185.53,185.43,14.35252323]
[1734976979218,23.902374,185.54,185.42,42.35770834]
[1734976979632,20.0,185.51,185.42,28.00518511]
[1734976979818,23.776884,185.5,185.42,28.00518511]
[1734976980241,23.776884,185.5,185.42,42.35770834]
[1734976980927,23.776884,185.5,185.42,28.00518511]
[1734976981759,20.0,185.47,185.42,28.00518511]
[1734976982050,23.776884,185.46,185.39,14.35252323]
[1734976983329,23.776884,185.46,185.4,14.35252323]
[1734976983530,23.776884,185.46,185.39,14.35252323]
[1734976984962,23.776884,185.46,185.35,2.35943536]
[1734976984963,20.0,185.47,185.4,14.35252323]
[1734976985131,1.3477,185.49,185.4,14.35252323]
[1734976985463,23.776884,185.48,185.4,14.35252323]
[1734976986863,23.776884,185.48,185.39,14.35252323]
[1734976987270,23.776884,185.48,185.4,14.35252323]
[1734976988456,23.776884,185.45,185.38,14.35252323]
[1734976988667,23.776884,185.45,185.37,14.35252323]
[1734976989635,23.776884,185.45,185.38,14.35252323]
[1734976989830,23.776884,185.48,185.41,14.35252323]
[1734976990053,23.776884,185.48,185.42,14.35252323]
[1734976990260,0.12549,185.47,185.4,14.35252323]
[1734976990535,0.12549,185.47,185.38,14.35252323]
[1734976990731,0.12549,185.47,185.37,14.35252323]
[1734976990968,3.38799,185.47,185.36,14.35252323]
[1734976991265,0.12549,185.45,185.35,14.35252323]
[1734976991472,43.776884,185.43,185.35,14.35252323]
[1734976992572,43.776884,185.43,185.36,14.35252323]
[1734976992868,0.12549,185.42,185.31,0.80902168]
[1734976993164,0.12549,185.42,185.3,14.35252323]
[1734976993335,0.12549,185.4,185.29,28.03156256]
[1734976993536,0.12549,185.35,185.27,14.35252323]
[1734976993759,0.12549,185.35,185.26,14.35252323]
[1734976994064,23.776884,185.36,185.28,14.35252323]
[1734976994576,20.0,185.33,185.27,14.35252323]
[1734976994741,23.776884,185.32,185.27,14.35252323]
[1734976995367,23.776884,185.32,185.25,14.35252323]
[1734976995557,23.776884,185.28,185.21,14.35252323]
[1734976996063,0.12549,185.27,185.2,14.35252323]
[1734976996250,0.12549,185.27,185.18,14.35252323]
[1734976997372,23.902374,185.25,185.16,14.35252323]
[1734976997669,23.902374,185.25,185.15,14.35252323]
[1734976997670,20.0,185.22,185.15,14.35252323]
[1734976997845,23.776884,185.21,185.15,14.35252323]
[1734976998167,23.776884,185.21,185.14,14.35252323]
[1734976998379,0.12549,185.2,185.12,14.35252323]
[1734976998683,20.0,185.14,185.06,14.35252323]
[1734976998968,20.0,185.1,185.0,28.07550393]
[1734976999279,20.0,185.1,185.0,42.42802716]
[1734976999280,23.776884,185.09,185.0,42.42802716]
[1734976999448,0.12549,185.12,185.01,14.35252323]
[1734976999641,23.776884,185.16,185.05,14.35252323]
[1734976999870,23.776884,185.16,185.07,14.35252323]
[1734977000175,23.776884,185.16,185.09,22.96807403]
[1734977000353,23.776884,185.16,185.08,22.96807403]
[1734977000554,23.776884,185.16,185.09,22.96807403]
[1734977001065,23.776884,185.16,185.11,22.96807403]
[1734977001270,21.3664,185.2,185.12,22.96807403]
[1734977001762,23.776884,185.19,185.12,22.96807403]
[1734977001959,23.776884,185.19,185.13,22.96807403]
[1734977002279,4.6289,185.26,185.16,22.96807403]
[1734977002481,0.12549,185.25,185.17,22.96807403]
[1734977002643,3.2625,185.31,185.2,22.96807403]
[1734977002847,3.2625,185.31,185.19,22.96807403]
[1734977003047,3.2625,185.31,185.17,22.96807403]
[1734977003250,1.3491,185.3,185.17,22.96807403]
[1734977003658,0.12549,185.29,185.16,22.96807403]
[1734977003865,0.12549,185.29,185.13,0.80987168]
[1734977004065,0.12549,185.29,185.12,22.96807403]
[1734977004264,23.902374,185.27,185.12,22.96807403]
[1734977004471,23.902374,185.27,185.13,22.96807403]
[1734977004761,23.902374,185.27,185.14,22.96807403]
[1734977004959,23.902374,185.23,185.14,22.96807403]
[1734977005479,23.776884,185.23,185.14,22.96807403]
[1734977005682,23.776884,185.23,185.15,22.96807403]
[1734977005983,0.12549,185.22,185.12,22.96807403]
[1734977006186,23.776884,185.23,185.14,22.96807403]
[1734977007185,23.776884,185.23,185.13,22.96807403]
[1734977008455,0.12549,185.22,185.13,22.96807403]
[1734977009884,1.3493,185.27,185.17,22.96807403]
[1734977010091,4.6116,185.31,185.17,22.96807403]
[1734977010389,4.6116,185.31,185.19,22.96807403]
[1734977010750,3.2625,185.31,185.19,22.96807403]
[1734977010959,3.2625,185.31,185.21,22.96807403]
[1734977012073,23.776884,185.3,185.21,22.96807403]
[1734977012257,23.776884,185.3,185.19,22.96807403]
[1734977012789,20.0,185.27,185.2,22.96807403]
[1734977012957,23.776884,185.26,185.2,22.96807403]
[1734977013158,20.0,185.29,185.21,22.96807403]
[1734977013584,23.776884,185.28,185.21,22.96807403]
[1734977013966,23.776884,185.28,185.17,0.80969311]
[1734977013967,23.776884,185.28,185.19,22.96807403]
[1734977014470,23.776884,185.28,185.21,22.96807403]
[1734977015195,23.776884,185.28,185.2,22.96807403]
[1734977015362,23.776884,185.28,185.19,22.96807403]
[1734977015689,23.776884,185.28,185.2,22.96807403]
[1734977015902,23.776884,185.28,185.19,22.96807403]
[1734977016392,0.12549,185.27,185.18,22.96807403]
[1734977016575,23.902374,185.24,185.16,22.96807403]
[1734977016886,23.776884,185.24,185.17,22.96807403]
[1734977017083,23.776884,185.24,185.18,22.96807403]
[1734977018776,23.776884,185.24,185.17,22.96807403]
[1734977018979,23.776884,185.24,185.16,22.96807403]
[1734977019207,23.776884,185.24,185.17,22.96807403]
[1734977020314,23.776884,185.24,185.19,22.96807403]
[1734977020989,1.3492,185.29,185.19,22.96807403]
[1734977021204,1.3492,185.29,185.2,22.96807403]
[1734977021205,20.0,185.29,185.2,22.96807403]
[1734977021416,20.0,185.29,185.21,22.96807403]
[1734977021589,20.0,185.29,185.17,0.80965687]
[1734977021590,20.0,185.29,185.22,22.96807403]
[1734977021782,20.12549,185.3,185.22,22.96807403]
[1734977021982,20.12549,185.3,185.21,22.96807403]
[1734977022192,20.12549,185.3,185.22,14.33547513]
[1734977022588,23.776884,185.29,185.22,14.33547513]
[1734977023109,1.3664,185.32,185.26,14.33547513]
[1734977023315,0.12549,185.31,185.24,14.33547513]
[1734977023608,1.3664,185.32,185.25,14.33547513]
[1734977024214,1.3664,185.32,185.25,22.9280657]
[1734977025597,23.776884,185.31,185.25,22.9280657]
[1734977025797,23.776884,185.31,185.23,22.9280657]
[1734977026001,0.12549,185.3,185.22,22.9280657]
[1734977026185,0.12549,185.3,185.2,42.9280657]
[1734977026388,0.12549,185.3,185.22,22.9280657]
[1734977027204,23.776884,185.31,185.22,22.9280657]
[1734977027516,23.776884,185.31,185.23,22.9280657]
[1734977027706,23.776884,185.31,185.24,22.9280657]
[1734977027908,23.776884,185.31,185.22,22.9280657]
[1734977028116,0.12549,185.3,185.21,22.9280657]
[1734977028493,1.47459,185.3,185.17,6.2019]
[1734977028819,0.12549,185.27,185.16,22.9280657]
[1734977029123,23.902374,185.27,185.16,22.9280657]
[1734977029292,23.902374,185.27,185.17,22.9280657]
[1734977029835,23.776884,185.23,185.16,22.9280657]
[1734977030005,23.776884,185.23,185.17,22.9280657]
[1734977030316,23.776884,185.23,185.16,22.9280657]
[1734977031804,23.776884,185.23,185.17,22.9280657]
[1734977032420,23.776884,185.23,185.16,22.9280657]
[1734977033916,0.12549,185.22,185.14,22.9280657]
[1734977034122,23.776884,185.23,185.16,22.9280657]
[1734977034508,23.776884,185.23,185.15,22.9280657]
[1734977034709,0.12549,185.22,185.13,22.9280657]
[1734977035019,0.12549,185.22,185.11,28.05186433]
[1734977035020,23.902374,185.19,185.11,28.05186433]
[1734977035322,23.902374,185.13,185.11,28.05186433]
[1734977035521,23.902374,185.13,185.04,22.9280657]
[1734977035725,23.902374,185.13,185.05,22.9280657]
[1734977036031,23.902374,185.13,185.06,22.9280657]
[1734977036328,23.902374,185.13,185.05,22.9280657]
[1734977036528,23.902374,185.13,185.06,22.9280657]
[1734977036695,23.776884,185.13,185.07,22.9280657]
[1734977037035,1.3664,185.2,185.1,22.9280657]
[1734977037206,23.776884,185.19,185.1,22.9280657]
[1734977037406,20.0,185.19,185.11,22.9280657]
[1734977037811,0.12549,185.19,185.12,22.9280657]
[1734977038606,23.902374,185.19,185.13,22.9280657]
[1734977039129,1.3664,185.2,185.14,22.9280657]
[1734977039633,1.3664,185.2,185.13,22.9280657]
[1734977039931,3.2625,185.21,185.14,22.9280657]
[1734977040605,23.776884,185.2,185.14,22.9280657]
[1734977040930,1.3664,185.24,185.15,22.9280657]
[1734977041634,1.3664,185.24,185.17,22.9280657]
[1734977041844,1.3664,185.24,185.16,22.9280657]
[1734977042133,23.776884,185.23,185.16,22.9280657]
[1734977042305,23.776884,185.23,185.17,22.9280657]
[1734977042638,23.776884,185.23,185.16,22.9280657]
[1734977043012,23.776884,185.23,185.17,22.9280657]
[1734977043206,23.776884,185.25,185.19,22.9280657]
[1734977043531,23.776884,185.25,185.17,22.9280657]
[1734977044215,23.776884,185.25,185.18,22.9280657]
[1734977044929,23.776884,185.25,185.17,22.9280657]
[1734977045595,23.776884,185.25,185.18,22.9280657]
[1734977045926,23.776884,185.25,185.19,22.9280657]
[1734977046920,23.776884,185.27,185.2,22.9280657]
[1734977047233,23.776884,185.27,185.21,22.9280657]
[1734977047434,4.6289,185.34,185.25,22.9280657]
[1734977047606,0.12549,185.33,185.21,22.9280657]
[1734977047921,0.12549,185.33,185.18,22.9280657]
[1734977048129,0.12549,185.31,185.18,22.9280657]
[1734977048636,23.902374,185.27,185.17,22.9280657]
[1734977049515,23.902374,185.27,185.16,22.9280657]
[1734977050034,23.902374,185.27,185.17,22.9280657]
[1734977050217,20.0,185.28,185.19,14.34070185]
[1734977050545,21.349,185.31,185.2,14.34070185]
[1734977050916,10.62543284,185.34,185.21,14.46619185]
[1734977051112,4.6289,185.34,185.28,14.34070185]
[1734977051331,10.82069962,185.38,185.3,14.34070185]